Cogmind - Beta 16 @@@ ROGUE MODE // 2025.10.23 @ 19:37:08 Player: beans Result: Destroyed by D-53 Grenadier with Mini Grenade Launcher Performance ------------- Evolutions (0) 0 Regions Visited (2) 400 Robots Destroyed (12) 60 Value Destroyed (322) 322 Prototype IDs (0) 0 Alien Tech Used (0) 0 Bonus (0) 0 TOTAL SCORE: 782 Bonus ------- None Cogmind --------- Core Integrity 0/250 Matter 60/300 Energy 94/100 System Corruption 2% Temperature Cool (0) Movement Core (50) Location -10/Mines Parts ------- > --- POWER (1) -------- (None) > --- PROPULSION (2) --- (None) > --- UTILITY (2) ------ Signal Interpreter > --- WEAPON (2) ------- (None) > --- INVENTORY (5) ---- Aluminum Leg Aluminum Leg Large Storage Unit Grenade Launcher Peak State ------------ > --- POWER ------------ (None) > --- PROPULSION ------- Aluminum Leg Aluminum Leg > --- UTILITY ---------- Large Storage Unit Signal Interpreter > --- WEAPON ----------- Light Cannon Light Cannon > --- INVENTORY -------- Aluminum Leg Aluminum Leg Grenade Launcher [Rating: 6] Favorites ----------- Power None Propulsion Aluminum Leg Leg Aluminum Leg Flight Unit Flight Unit Utility Large Storage Unit Storage Large Storage Unit Processor Signal Interpreter Weapon Light Cannon Ballistic Cannon Light Cannon Launcher Grenade Launcher Build | -11 -10 -10 ------- Run | Yrd Mat Min Slots Evolved . | . . . Power . | . . . Propulsion . | . . . Utility . | . . . Weapon . | . . . Parts Attached 10 | . 8 2 Power . | . . . Engine . | . . . Core . | . . . Reactor . | . . . Propulsion 3 | . 3 . Treads . | . . . Leg 2 | . 2 . Wheel . | . . . Hover . | . . . Flight 1 | . 1 . Utility 2 | . 2 . Device . | . . . Storage 1 | . 1 . Processor 1 | . 1 . Hackware . | . . . Protection . | . . . Artifact . | . . . Weapon 5 | . 3 2 Energy Gun . | . . . Energy Cannon . | . . . Ballistic Gun . | . . . Ballistic Cannon 2 | . 2 . Launcher 3 | . 1 2 Special Weapon . | . . . Impact Weapon . | . . . Slashing Weapon . | . . . Piercing Weapon . | . . . Special Melee Weapon . | . . . Unidentified Prototypes . | . . . Parts Lost 7 | . 1 6 Power . | . . . Propulsion 3 | . 1 2 Utility . | . . . Weapon 4 | . . 4 Highest Loss Streak 6 | . 1 6 To Critical Strikes . | . . . Average Backups 1 | . 1 4 Power . | . . . Propulsion . | . . 2 Utility . | . . . Weapon . | . . 2 Tool/Special . | . . . Unused Backups 2 | . . 2 Power . | . . . Propulsion 2 | . . 2 Utility . | . . . Weapon . | . . . Tool/Special . | . . . Average Slot Usage (%) 58 | . 56 73 Leg 7 | . 5 23 Flight 5 | . 6 . Storage 12 | . 12 11 Processor 11 | . 10 14 Ballistic Cannon 16 | . 15 21 Launcher 4 | . 4 2 Peak Build Rating 6 | . 6 6 Average Rating 4 | . 4 5 On Entrance 2 | . . 6 Avg Prop Armor Cover (%) . | . . . Naked Turns 30 | . 30 . Heaviest Build 26 | . 26 26 Greatest Support 20 | 3 20 20 Greatest Overweight (x) 8 | . 8 2 Average Overweight (x) 1 | . 2 1 Largest Inventory Capacity 15 | 5 15 15 Average Capacity 14 | 5 14 14 Most Carried 5 | . 5 5 Average Carried 1 | . 1 4 Final Capacity 15 | 5 15 5 Final Carried 5 | . 5 4 Class Distribution -------------------- 100% | Mutant Dominant Class ---------------- Mutant | -10/Materials Mutant | -10/Mines Resources | -11 -10 -10 ----------- Run | Yrd Mat Min Matter Collected 279 | 195 36 48 Remotely . | . . . Salvage Created 296 | . 230 66 Parts 25 | . 22 3 Haulers Intercepted 1 | . 1 . Recyclers Shooed . | . . . Parts Field Recycled . | . . . Retrieved Matter . | . . . Parts Self-Destructed . | . . . Prevented . | . . . Parts Restored . | . . . Kills | -11 -10 -10 ------- Run | Yrd Mat Min Combat Hostiles Destroyed 10 | . 8 2 Cannons 7 | . 5 2 AOE 3 | . 3 . Classes Destroyed 4 | . 4 . Hauler 1 | . 1 . Recycler 1 | . 1 . Swarmer 3 | . 3 . Grunt 7 | . 5 2 Best Kill Streak 5 | . 5 2 Combat Bots Only 4 | . 4 2 Max Kills in Single Turn 2 | . 2 1 Gunslinging . | . . . Exploded 2 | . 2 . Melee . | . . . Uniques/NPCs Destroyed . | . . . Combat | -11 -10 -10 -------- Run | Yrd Mat Min Hostile Shots Fired 51 | . 29 22 Missed 6 | . 5 1 Hits 45 | . 24 21 Projectile 45 | . 24 21 AOE 13 | . . 13 Damage Taken 943 | . 325 618 Core 264 | . 83 181 Absorbed by Shields . | . . . Core Remaining (%) 100 | 100 . . Volleys Fired 30 | . 24 6 Largest 2 | . 2 2 Hottest 60 | . 60 60 Shots Fired 55 | . 44 11 Gun . | . . . Cannon 50 | . 40 10 Launcher 5 | . 4 1 Special . | . . . Kinetic 50 | . 40 10 Thermal . | . . . Explosive 5 | . 4 1 Electromagnetic . | . . . Robot Hit Streak 7 | . 7 3 Robot Miss Streak 2 | . 2 2 Penetration Max . | . . . Secondary Targets . | . . . Shots Hit Robots 32 | . 26 6 Core Hits 16 | . 11 5 Critical Kills . | . . . Critical Parts Destroyed . | . . . Critical Strikes 2 | . 1 1 Blast 2 | . 1 1 Melee Attacks . | . . . Impact . | . . . Slashing . | . . . Piercing . | . . . Sneak Attacks . | . . . Combat Hostiles . | . . . Follow-up Attacks . | . . . Damage Inflicted 770 | . 682 88 Guns . | . . . Cannons 517 | . 434 83 Explosions 246 | . 241 5 Melee . | . . . Ramming 7 | . 7 . Kinetic 517 | . 434 83 Thermal . | . . . Explosive 246 | . 241 5 Electromagnetic . | . . . Impact . | . . . Slashing . | . . . Piercing . | . . . Highest Corruption 2 | . 2 2 Average Corruption 2 | . 2 2 Corruption Purged . | . . . Corruption Blocked . | . . . Effects 6 | . 5 1 Message Errors 2 | . 2 . Matter Fused 1 | . 1 . Heat Flow Errors 1 | . . 1 Data Loss (minor) 2 | . 2 . Overload Shots . | . . . Overflow Damage 21 | . 21 . Projectiles 1 | . 1 . Explosions 20 | . 20 . Melee . | . . . Knockbacks 8 | . 7 1 Impact . | . . . Kinetic 8 | . 7 1 Secondary . | . . . Self-Inflicted Damage 50 | . 50 . Shots 3 | . 3 . Rammed 1 | . 1 . Targets Rammed 1 | . 1 . Kicked . | . . . Crushed . | . . . Highest Temperature 181 | . 17 181 Average Temperature 49 | . 8 107 Received Heat Transfer 195 | . 129 66 Siege Activations . | . . . Martial Activations . | . . . Shielding Activations . | . . . Robots Disrupted . | . . . Combat Hostiles . | . . . Robots Corrupted . | . . . Combat Hostiles . | . . . Parts Fried . | . . . Impact Corruptions . | . . . Robots Melted . | . . . Combat Hostiles . | . . . Parts Melted . | . . . Heat Transferred . | . . . Parts Sabotaged . | . . . Parts Stolen . | . . . Parts Stripped . | . . . Power Chain Reactions . | . . . Alert | -11 -10 -10 ------- Run | Yrd Mat Min Maximum Alert Level . | . . . Low Security (%) 100 | 100 100 100 Level 1 . | . . . Level 2 . | . . . Level 3 . | . . . Level 4 . | . . . Level 5 . | . . . High Security . | . . . Max Security . | . . . Peak Influence 104 | . 104 56 Initial 26 | . . 26 Average 44 | . 47 29 Influence Increases 298 | . 241 57 Destroy 0b10 Robot/C 200 | . 160 40 Destroy 0b10 Robot/NC 10 | . 10 . Destroy Leader 32 | . 22 10 Disable Machine 30 | . 30 . Destroy Structure 26 | . 19 7 Influence Decreases 295 | . 172 123 Entered New Map 43 | . . 43 Time Decay 182 | . 162 20 Lost Part 70 | . 10 60 Squads Dispatched . | . . . Investigation . | . . . Extermination . | . . . Reinforcement . | . . . Assault . | . . . Garrison . | . . . Intercept . | . . . Searches Triggered . | . . . Construction Impeded . | . . . Haulers Reinforced . | . . . Active Scanning Responses . | . . . Cargo Convoy Interrupts . | . . . Stealth | -11 -10 -10 --------- Run | Yrd Mat Min Distress Signals 1 | . 1 . Communications Jammed . | . . . Distress Signals . | . . . Times Spotted 15 | . 10 5 Peak Tracking Total 5 | . 5 4 Tactical Retreats . | . . . Traps | -11 -10 -10 ------- Run | Yrd Mat Min Traps Triggered . | . . . Indirectly . | . . . Trap Hack Attempts . | . . . Triggered . | . . . Disarmed . | . . . Reprogrammed . | . . . Reused . | . . . Traps Extracted . | . . . Installed . | . . . Triggered . | . . . Machines | -11 -10 -10 ---------- Run | Yrd Mat Min Machines Disabled 2 | . 2 . Max in Single Turn 1 | . 1 . Machines Repaired . | . . . Machines Dismantled . | . . . Machines Sabotaged . | . . . Overloaded Fab Kills . | . . . Hacking | -11 -10 -10 --------- Run | Yrd Mat Min Machines Accessed . | . . . Terminals . | . . . Fabricators . | . . . Repair Stations . | . . . Recycling Units . | . . . Scanalyzers . | . . . Garrison Access . | . . . Total Hacks . | . . . Successful . | . . . Failed . | . . . Catastrophic . | . . . Database Lockouts . | . . . Manual . | . . . Terminals . | . . . Fabricators . | . . . Repair Stations . | . . . Recycling Units . | . . . Scanalyzers . | . . . Garrison Access . | . . . Terminal Hacks . | . . . Fabricator Hacks . | . . . Repair Station Hacks . | . . . Recycling Unit Hacks . | . . . Scanalyzer . | . . . Garrison Access Hacks . | . . . Unauthorized Hacks . | . . . Terminals . | . . . Fabricators . | . . . Repair Stations . | . . . Recycling Units . | . . . Scanalyzers . | . . . Garrison Access . | . . . Data Cores Recovered . | . . . Used . | . . . Hacking Detections . | . . . Full Trace Events . | . . . Feedback Events . | . . . Feedback Blocked . | . . . Robot Schematics Acquired . | . . . Robots Built . | . . . Authchips . | . . . Time . | . . . Total Robot Build Rating . | . . . Part Schematics Acquired . | . . . Parts Built . | . . . Authchips . | . . . Time . | . . . Total Part Build Rating . | . . . Part Studies Acquired . | . . . Parts Repaired . | . . . Time . | . . . Parts Recycled . | . . . Recycled Matter . | . . . Retrieved Matter . | . . . Retrieved Components . | . . . Parts Scanalyzed . | . . . Part Schematics Acquired . | . . . Parts Damaged . | . . . Bothacking | -11 -10 -10 ------------ Run | Yrd Mat Min Used RIF Installer . | . . . Robots Hacked . | . . . Non-combat . | . . . Combat . | . . . Robot Hacks Applied . | . . . Relay Couplers Released . | . . . Fabnet Peak Effective % . | . . . Robots Rewired . | . . . Allies Hacked . | . . . Hacks Repelled . | . . . Allies | -11 -10 -10 -------- Run | Yrd Mat Min Total Allies . | . . . Largest Group . | . . . Highest-Rated Group . | . . . Highest-Rated Ally . | . . . Total Orders . | . . . Ally Attacks . | . . . Total Damage . | . . . Kills . | . . . Allies Corrupted . | . . . Allies Melted . | . . . Intel | -11 -10 -10 ------- Run | Yrd Mat Min Active Infowar (turns) . | . . . Robot Analysis Total . | . . . Derelict Logs Recovered . | . . . Drone Launches . | . . . Drone Recoveries . | . . . Exploration | -11 -10 -10 ------------- Run | Yrd Mat Min Turns Passed 479 | 16 418 45 Spaces Moved 180 | 31 136 13 Core 97 | 31 65 1 Treads . | . . . Legs 45 | . 33 12 Wheels . | . . . Hover . | . . . Flight 38 | . 38 . Fastest Speed 50 | 50 50 50 Average Speed 201 | 50 237 184 Slowest Speed 520 | 50 520 260 Overloaded Moves . | . . . Propulsion Burnouts . | . . . Robots Hopped . | . . . Potential Cave-ins . | . . . Cave-ins Triggered . | . . . Exploration Rate (%) 16 | 3 36 10 Regions Visited 2 Branch Regions 1 Pre-discovered Areas . | . . . Known Exits Taken 1 | . 1 . Unknown Exits Taken 1 | 1 . . Scrap Searched . | . . . Spaces Dug 3 | . 3 . Terrain Destroyed 29 | . 22 7 Melee . | . . . Projectile . | . . . AOE 29 | . 22 7 Terrain Rammed . | . . . Walls Destroyed . | . . . Machines Disabled . | . . . Actions | -11 -10 -10 --------- Run | Yrd Mat Min Total 240 | 30 187 23 Wait 8 | . 7 1 Move 178 | 30 135 13 Hop . | . . . Pick Up 12 | . 12 . Fast Attach . | . . . Attach 9 | . 7 2 Detach 1 | . . 1 Swap 1 | . 1 . Drop . | . . . Fire 30 | . 24 6 Melee . | . . . Ram 1 | . 1 . Kick . | . . . Crush . | . . . Escape Stasis . | . . . Rewire . | . . . Trap . | . . . Miscellaneous . | . . . Route ------- -11/Scrapyard -10/Materials -10/Mines History --------- Turn | Location | Event 4 | -11/Scrapyard | Discovered new exit (range 13) 17 | -11/Scrapyard | Entered Materials 308 | -10/Materials | Build established: Mutant 391 | -10/Materials | Discovered new exit (range 16) 433 | -10/Materials | Identified exit to Mines 435 | -10/Materials | Entered Mines 436 | -10/Mines | Assembled infested the area 465 | -10/Mines | Core integrity fell below 50% 477 | -10/Mines | Core integrity fell below 20% 480 | -10/Mines | Destroyed by D-53 Grenadier with Mini Grenade Launcher Last Messages --------------- C-45 Heavy ARC Imp. Core Shielding blasted off. C-45 Heavy ARC bursts open, deploying its payload. D-53 Grenadier unfolds itself. System corrupted: Heat flow error (+172). G-34 Mercenary knocked back. G-34 Mercenary destroyed. G-47 Trooper destroyed. Lgt. Cannon destroyed. R-06 Scavenger collects Imp. Core Shielding. Acquired 48 matter. Lgt. Cannon destroyed. R-06 Scavenger destroyed. Grenade Launcher destroyed. Aluminum Leg destroyed. K-01 Serf collects debris. Grenade Launcher destroyed. K-01 Serf collects debris. Aluminum Leg destroyed. The unstable cave ceiling collapses. Map ----- +----------------------------------------------------+ | ???????????????????????????????????????????? | | ???????????????????????????????????????????? | | ???????????????????????????????????????????? | | ???????????????????????????????????????????? | | ???????????????????????????????????????????? | | ???????????????????????????????????????????? | | ???????????????????????????????????????????? | | ???????????????????????????????????????????? | | ???????????????????????????????????????????? | | ???????????????????????????????????????????? | | ????????????????????####???????????????????? | | ???????????????????## ##??????????????????? | | ??????????????????## #??????????????????? | | ??????????????????? #??????????????????? | | ??????????????????? #??????????????????? | | ????????????##?????# ##?????????????????? | | ???????????? ?????# #?????????????????? | | ????????????? ???## #?????????????????? | | ????????????? ?## #??????????????????? | | ??????????"" """?# ###???#????????????? | | ??????????"" """ # #? #????????????? | | ?????????""" """ # # d #????????????? | | ?????????? k # ###??????????? | | ???????????" """ #??????????? | | ???????????" """ ! #?????????? | | ???????????" """ @ d #?????????? | | ???????? #?????????? | | ???? k # ##?????????? | | ?????############ ##?###??????????? | | ????????????????### # #???????????????? | | ??????????????????#### ###???????????????? | | ??????????????????????####?????????????????? | | ???????????????????????????????????????????? | | ???????????????????????????????????????????? | | ???????????????????????????????????????????? | | ???????????????????????????????????????????? | | ???????????????????????????????????????????? | | ???????????????????????????????????????????? | | ???????????????????????????????????????????? | | ???????????????????????????????????????????? | | ???????????????????????????????????????????? | | ???????????????????????????????????????????? | | ???????????????????????????????????????????? | | ???????????????????????????????????????????? | | ???????????????????????????????????????????? | | ???????????????????????????????????????????? | | ???????????????????????????????????????????? | | ???????????????????????????????????????????? | | ???????????????????????????????????????????? | | ???????????????????????????????????????????? | +----------------------------------------------------+ Best States ------------- Heat Dissipation 25 Energy Generation 5 Energy Capacity 100 Matter Stores 300 Matter Capacity 300 Sight Range 16 Terrain Scan Density 10 Evasion (%) 50 Item Schematics ----------------- None Robot Schematics ------------------ None Fabricated ------------ Nothing Repaired ---------- Nothing Studied --------- None Alien Tech Used ----------------- None Achievements -------------- None Challenges ------------ None Game ------ Seed PiercelightNeutrinoActivator Manual? 0 Play Time 00:03:38 Cumulative 194.9 hours Start 2025.10.22 @ 20:01:32 End 2025.10.23 @ 19:37:08 Sessions 2 Manual Loads 0 Difficulty Rogue Special Mode None Game No. 575 Rogue 574 Adventurer 1 Explorer 0 Win Type - Total 0 Types 0/0/0/0/0/0/0/0/0/0 Lore% 63 Gallery% 59 Achievement% 30 Wizard Run 0 Options --------- Layout 1 ASCII 0 Keyboard 0 Movement Mouse Keybinds 0 Fullscreen 1 Font 24/Smallcaps Map View 50x35 Zoom Use 0% Tactical HUD 0 Map Filters NONE Filters NONE Steam 1 RUN: 4b0d713f-943d-4d09-a751-f90aa80f72fa